Cogmind - Beta 16 @@@ ROGUE MODE // 2025.12.14 @ 13:25:10 Player: Careless Squirrel Result: Destroyed by L-31 Rogue with Katana Performance ------------- Evolutions (2) 1000 Regions Visited (3) 600 Robots Destroyed (35) 175 Value Destroyed (823) 823 Prototype IDs (1) 20 Alien Tech Used (0) 0 Bonus (0) 0 TOTAL SCORE: 2618 Bonus ------- None Cogmind --------- Core Integrity 0/550 Matter 209/300 Energy 100/100 System Corruption 0% Temperature Cool (0) Movement Core (100) Ox1 Location -8/Materials Parts ------- > --- POWER (2) -------- (None) > --- PROPULSION (4) --- (None) > --- UTILITY (2) ------ Power Shielding > --- WEAPON (3) ------- High-powered Shotgun > --- INVENTORY (5) ---- Small Storage Unit Peak State ------------ > --- POWER ------------ Cooled Deuterium Engine Cooled Deuterium Engine > --- PROPULSION ------- Aluminum Leg > --- UTILITY ---------- Small Storage Unit Light Armor Plating > --- WEAPON ----------- EM Pulse Cannon EM Pulse Cannon EM Pulse Cannon > --- INVENTORY -------- Power Shielding [Rating: 22] Favorites ----------- Power Cooled Deuterium Engine Engine Cooled Deuterium Engine Propulsion Aluminum Leg Treads Light Treads Leg Aluminum Leg Utility Small Storage Unit Device Structural Scanner Storage Small Storage Unit Protection Light Armor Plating Weapon EM Pulse Cannon Energy Gun EM Pulse Gun Energy Cannon EM Pulse Cannon Ballistic Gun Assault Rifle Launcher Rocket Launcher Impact Weapon Hammer Build | -11 -10 -9 -8 ------- Run | Yrd Mat Mat Mat Slots Evolved 4 | . . 2 2 Power 1 | . . . 1 Propulsion 2 | . . 2 . Utility . | . . . . Weapon 1 | . . . 1 Parts Attached 27 | 7 1 12 7 Power 4 | 1 . 1 2 Engine 4 | 1 . 1 2 Core . | . . . . Reactor . | . . . . Propulsion 7 | 2 . 5 . Treads 2 | . . 2 . Leg 5 | 2 . 3 . Wheel . | . . . . Hover . | . . . . Flight . | . . . . Utility 5 | 1 1 1 2 Device 1 | . 1 . . Storage 1 | 1 . . . Processor . | . . . . Hackware . | . . . . Protection 3 | . . 1 2 Artifact . | . . . . Weapon 11 | 3 . 5 3 Energy Gun 2 | 1 . 1 . Energy Cannon 3 | . . 2 1 Ballistic Gun 4 | 2 . 1 1 Ballistic Cannon . | . . . . Launcher 1 | . . 1 . Special Weapon . | . . . . Impact Weapon 1 | . . . 1 Slashing Weapon . | . . . . Piercing Weapon . | . . . . Special Melee Weapon . | . . . . Unidentified Prototypes 1 | . . . 1 Parts Lost 20 | . 1 10 9 Power 4 | . 1 1 2 Propulsion 5 | . . 4 1 Utility 3 | . . 1 2 Weapon 8 | . . 4 4 Highest Loss Streak 9 | . 1 9 8 To Critical Strikes . | . . . . Average Backups 3 | 2 4 3 1 Power . | . 1 . . Propulsion . | . 2 . . Utility . | . . 1 1 Weapon 1 | . 1 2 . Tool/Special . | . . . . Unused Backups . | . . . . Power . | . . . . Propulsion . | . . . . Utility . | . . . . Weapon . | . . . . Tool/Special . | . . . . Average Slot Usage (%) 78 | . 94 84 57 Engine 10 | . 9 7 14 Treads 4 | . . 10 . Leg 19 | . 28 23 7 Device 7 | . 12 9 . Storage 10 | . 14 11 7 Protection 3 | . . 1 8 Energy Gun 7 | . 14 7 . Energy Cannon 6 | . . . 19 Ballistic Gun 6 | . 14 6 . Launcher 1 | . . 4 . Peak Build Rating 22 | 6 7 10 22 Average Rating 10 | 4 6 8 17 On Entrance 5 | . 6 6 9 Avg Prop Armor Cover (%) 15 | . . 15 5 Naked Turns . | . . . . Heaviest Build 48 | 14 15 20 48 Greatest Support 40 | 20 20 40 10 Greatest Overweight (x) 15 | . . 3 15 Average Overweight (x) . | . . . 3 Largest Inventory Capacity 8 | 8 8 8 8 Average Capacity 7 | 6 8 8 7 Most Carried 6 | 4 6 5 2 Average Carried 3 | 2 4 3 1 Final Capacity 8 | 8 8 8 5 Final Carried 6 | 4 6 1 1 Class Distribution -------------------- 80% | Mutant 19% | Tank Dominant Class ---------------- Mutant | -10/Materials Mutant | -9/Materials Tank | -8/Materials Resources | -11 -10 -9 -8 ----------- Run | Yrd Mat Mat Mat Matter Collected 620 | 226 84 199 111 Remotely . | . . . . Salvage Created 763 | . 189 439 135 Parts 68 | . 20 41 7 Haulers Intercepted . | . . . . Recyclers Shooed 1 | . . 1 . Parts Field Recycled . | . . . . Retrieved Matter . | . . . . Parts Self-Destructed . | . . . . Prevented . | . . . . Parts Restored . | . . . . Kills | -11 -10 -9 -8 ------- Run | Yrd Mat Mat Mat Combat Hostiles Destroyed 30 | . 8 17 5 Guns 15 | . 8 7 . Cannons 4 | . . . 4 AOE 11 | . . 10 1 Classes Destroyed 8 | . 2 6 . Worker 1 | . . 1 . Builder 1 | . . 1 . Recycler 1 | . . 1 . Operator 1 | . . 1 . Watcher 1 | . . 1 . Swarmer 18 | . 6 8 4 Grunt 7 | . 2 4 1 Sentry 5 | . . 5 . Best Kill Streak 7 | . 3 7 4 Combat Bots Only 6 | . 3 6 4 Max Kills in Single Turn 3 | . 1 3 1 Gunslinging . | . . . . Exploded 2 | . . 2 1 Melee . | . . . . Uniques/NPCs Destroyed . | . . . . Combat | -11 -10 -9 -8 -------- Run | Yrd Mat Mat Mat Hostile Shots Fired 237 | . 26 83 128 Missed 63 | . 8 21 34 Hits 174 | . 18 62 94 Melee 14 | . . . 14 Projectile 160 | . 18 62 80 Critical Strikes 7 | . . 1 6 Actively Blocked 1 | . . . 1 Damage Taken 2645 | . 207 958 1480 Core 818 | . 52 188 578 Absorbed by Shields . | . . . . Redirected to Shielding 38 | . . . 38 Core Remaining (%) 77 | 100 79 53 . Volleys Fired 60 | . 13 35 12 Largest 3 | . 2 2 3 Hottest 189 | . 60 73 189 Shots Fired 104 | . 26 53 25 Gun 64 | . 26 35 3 Cannon 22 | . . . 22 Launcher 18 | . . 18 . Special . | . . . . Kinetic 43 | . 13 27 3 Thermal . | . . . . Explosive 18 | . . 18 . Electromagnetic 43 | . 13 8 22 Robot Hit Streak 9 | . 3 9 3 Robot Miss Streak 4 | . 3 4 2 Penetration Max . | . . . . Secondary Targets 2 | . 2 . . Max Gunslinging Chain 1 | . 1 . . Shots Hit Robots 72 | . 13 42 17 Core Hits 52 | . 8 36 8 Critical Kills . | . . . . Critical Parts Destroyed . | . . . . Critical Strikes 1 | . 1 . . Corrupt 1 | . 1 . . Melee Attacks 5 | . . . 5 Impact 5 | . . . 5 Slashing . | . . . . Piercing . | . . . . Sneak Attacks 1 | . . . 1 Combat Hostiles 1 | . . . 1 Follow-up Attacks . | . . . . Damage Inflicted 2055 | . 252 1181 622 Guns 616 | . 226 313 77 Cannons 322 | . . . 322 Explosions 1007 | . 26 868 113 Melee 109 | . . . 109 Ramming 1 | . . . 1 Kinetic 403 | . 81 245 77 Thermal 163 | . 26 24 113 Explosive 844 | . . 844 . Electromagnetic 535 | . 145 68 322 Impact 109 | . . . 109 Slashing . | . . . . Piercing . | . . . . Highest Corruption . | . . . . Average Corruption . | . . . . Corruption Purged . | . . . . Corruption Blocked . | . . . . Overload Shots . | . . . . Overflow Damage 38 | . . 18 20 Projectiles 6 | . . . 6 Explosions 18 | . . 18 . Melee 14 | . . . 14 Knockbacks . | . . . . Impact . | . . . . Kinetic . | . . . . Secondary . | . . . . Self-Inflicted Damage 221 | . . 221 . Shots 11 | . . 11 . Rammed 1 | . . . 1 Targets Rammed 1 | . . . 1 Kicked . | . . . . Crushed . | . . . . Highest Temperature 593 | . 18 19 593 Average Temperature 156 | . 11 6 230 Received Heat Transfer 696 | . 24 204 468 Effects 9 | . . . 9 Shutdowns 2 | . . . 2 Energy Bleed 1 | . . . 1 Interference 3 | . . . 3 Short Circuit 1 | . . . 1 Damage (minor) 2 | . . . 2 Siege Activations . | . . . . Martial Activations . | . . . . Shielding Activations . | . . . . Robots Disrupted . | . . . . Combat Hostiles . | . . . . Robots Corrupted . | . . . . Combat Hostiles . | . . . . Parts Fried 1 | . . . 1 Impact Corruptions 1 | . . . 1 Robots Melted . | . . . . Combat Hostiles . | . . . . Parts Melted . | . . . . Heat Transferred 250 | . 50 50 150 Parts Sabotaged . | . . . . Parts Stolen . | . . . . Parts Stripped . | . . . . Power Chain Reactions 3 | . 1 1 1 Alert | -11 -10 -9 -8 ------- Run | Yrd Mat Mat Mat Maximum Alert Level 1 | . . 1 1 Low Security (%) 80 | 100 100 71 70 Level 1 19 | . . 28 29 Level 2 . | . . . . Level 3 . | . . . . Level 4 . | . . . . Level 5 . | . . . . High Security . | . . . . Max Security . | . . . . Peak Influence 368 | . 135 368 286 Initial 137 | . . 27 137 Average 106 | . 54 134 140 Influence Increases 1256 | . 215 606 435 Destroy 0b10 Robot/C 600 | . 160 340 100 Destroy 0b10 Robot/NC 25 | . . 25 . Destroy Leader 142 | . 20 102 20 Disable Machine 30 | . . 30 . Anti-Garrison Action 150 | . . . 150 Destroy Structure 114 | . 5 109 . Lose Combat Pursuer 195 | . 30 . 165 Influence Decreases 988 | . 150 345 493 Entered New Map 227 | . . 38 189 Time Decay 561 | . 140 207 214 Lost Part 200 | . 10 100 90 Squads Dispatched 7 | . 1 3 3 Investigation 1 | . 1 . . Extermination . | . . . . Reinforcement 4 | . . 3 1 Assault 2 | . . . 2 Garrison . | . . . . Intercept . | . . . . Searches Triggered . | . . . . Construction Impeded . | . . . . Haulers Reinforced . | . . . . Active Scanning Responses . | . . . . Cargo Convoy Interrupts . | . . . . Stealth | -11 -10 -9 -8 --------- Run | Yrd Mat Mat Mat Distress Signals 1 | . . . 1 Communications Jammed . | . . . . Distress Signals . | . . . . Times Spotted 55 | . 10 22 23 Peak Tracking Total 11 | . 3 10 11 Tactical Retreats 5 | . 1 . 4 Traps | -11 -10 -9 -8 ------- Run | Yrd Mat Mat Mat Traps Triggered 2 | . 2 . . Indirectly . | . . . . Trap Hack Attempts . | . . . . Triggered . | . . . . Disarmed . | . . . . Reprogrammed . | . . . . Reused . | . . . . Traps Extracted . | . . . . Installed . | . . . . Triggered . | . . . . Machines | -11 -10 -9 -8 ---------- Run | Yrd Mat Mat Mat Machines Disabled 3 | . . 2 1 Max in Single Turn 1 | . . 1 1 Garrison Access 1 | . . . 1 Machines Repaired . | . . . . Machines Dismantled . | . . . . Machines Sabotaged . | . . . . Overloaded Fab Kills . | . . . . Hacking | -11 -10 -9 -8 --------- Run | Yrd Mat Mat Mat Machines Accessed . | . . . . Terminals . | . . . . Fabricators . | . . . . Repair Stations . | . . . . Recycling Units . | . . . . Scanalyzers . | . . . . Garrison Access . | . . . . Total Hacks . | . . . . Successful . | . . . . Failed . | . . . . Catastrophic . | . . . . Database Lockouts . | . . . . Manual . | . . . . Terminals . | . . . . Fabricators . | . . . . Repair Stations . | . . . . Recycling Units . | . . . . Scanalyzers . | . . . . Garrison Access . | . . . . Terminal Hacks . | . . . . Fabricator Hacks . | . . . . Repair Station Hacks . | . . . . Recycling Unit Hacks . | . . . . Scanalyzer . | . . . . Garrison Access Hacks . | . . . . Unauthorized Hacks . | . . . . Terminals . | . . . . Fabricators . | . . . . Repair Stations . | . . . . Recycling Units . | . . . . Scanalyzers . | . . . . Garrison Access . | . . . . Data Cores Recovered . | . . . . Used . | . . . . Hacking Detections . | . . . . Full Trace Events . | . . . . Feedback Events . | . . . . Feedback Blocked . | . . . . Robot Schematics Acquired . | . . . . Robots Built . | . . . . Authchips . | . . . . Time . | . . . . Total Robot Build Rating . | . . . . Part Schematics Acquired . | . . . . Parts Built . | . . . . Authchips . | . . . . Time . | . . . . Total Part Build Rating . | . . . . Part Studies Acquired . | . . . . Parts Repaired . | . . . . Time . | . . . . Parts Recycled . | . . . . Recycled Matter . | . . . . Retrieved Matter . | . . . . Retrieved Components . | . . . . Parts Scanalyzed . | . . . . Part Schematics Acquired . | . . . . Parts Damaged . | . . . . Bothacking | -11 -10 -9 -8 ------------ Run | Yrd Mat Mat Mat Used RIF Installer . | . . . . Robots Hacked . | . . . . Non-combat . | . . . . Combat . | . . . . Robot Hacks Applied . | . . . . Relay Couplers Released 3 | . . . 3 Machine Destruction 3 | . . . 3 Fabnet Peak Effective % . | . . . . Robots Rewired . | . . . . Allies Hacked . | . . . . Hacks Repelled . | . . . . Allies | -11 -10 -9 -8 -------- Run | Yrd Mat Mat Mat Total Allies . | . . . . Largest Group . | . . . . Highest-Rated Group . | . . . . Highest-Rated Ally . | . . . . Total Orders . | . . . . Ally Attacks . | . . . . Total Damage . | . . . . Kills . | . . . . Allies Corrupted . | . . . . Allies Melted . | . . . . Intel | -11 -10 -9 -8 ------- Run | Yrd Mat Mat Mat Active Infowar (turns) 789 | . 369 420 . Structural 789 | . 369 420 . Robot Analysis Total . | . . . . Derelict Logs Recovered . | . . . . Drone Launches . | . . . . Drone Recoveries . | . . . . Exploration | -11 -10 -9 -8 ------------- Run | Yrd Mat Mat Mat Turns Passed 1419 | 80 397 499 443 Spaces Moved 732 | 55 250 299 128 Core 73 | 4 . 2 67 Treads . | . . . . Legs 659 | 51 250 297 61 Wheels . | . . . . Hover . | . . . . Flight . | . . . . Fastest Speed 50 | 50 120 120 50 Average Speed 152 | 114 120 127 288 Slowest Speed 800 | 120 120 200 800 Overloaded Moves . | . . . . Propulsion Burnouts . | . . . . Robots Hopped . | . . . . Potential Cave-ins . | . . . . Cave-ins Triggered . | . . . . Exploration Rate (%) 26 | 4 52 35 16 Regions Visited 3 Branch Regions . Pre-discovered Areas . | . . . . Known Exits Taken . | . . . . Unknown Exits Taken 3 | 1 1 1 . Scrap Searched . | . . . . Spaces Dug . | . . . . Terrain Destroyed 127 | . 3 124 . Melee . | . . . . Projectile . | . . . . AOE 127 | . 3 124 . Terrain Rammed . | . . . . Walls Destroyed . | . . . . Machines Disabled . | . . . . Actions | -11 -10 -9 -8 --------- Run | Yrd Mat Mat Mat Total 936 | 72 321 370 173 Wait 74 | . 55 8 11 Move 729 | 54 249 298 128 Hop . | . . . . Pick Up 29 | 10 3 9 7 Fast Attach . | . . . . Attach 30 | 7 1 14 8 Detach 3 | 1 . 1 1 Swap . | . . . . Drop 5 | . . 5 . Fire 60 | . 13 35 12 Melee 5 | . . . 5 Ram 1 | . . . 1 Kick . | . . . . Crush . | . . . . Escape Stasis . | . . . . Rewire . | . . . . Trap . | . . . . Miscellaneous . | . . . . Route ------- -11/Scrapyard -10/Materials (discovered 2 exits: *Mat x2) -9/Materials -8/Materials History --------- Turn | Location | Event 4 | -11/Scrapyard | Discovered new exit (range 16) 81 | -11/Scrapyard | Entered Materials 301 | -10/Materials | Build established: Mutant 329 | -10/Materials | Discovered new exit (range 5) 466 | -10/Materials | Discovered new exit (range 7) 478 | -10/Materials | Entered another Materials area 478 | -9/Materials | Evolved 2 slots: Propulsion x2 864 | -9/Materials | Discovered new exit (range 15) 935 | -9/Materials | Lost 9 parts (1p4n1u3w) 977 | -9/Materials | Entered another Materials area 977 | -8/Materials | Evolved 2 slots: Power x1, Weapon x1 1335 | -8/Materials | Core integrity fell below 50% 1391 | -8/Materials | Lost 8 parts (2p1n2u3w) 1410 | -8/Materials | Core integrity fell below 20% 1420 | -8/Materials | Destroyed by L-31 Rogue with Katana Last Messages --------------- 01342_ U-05 Engineer destroyed. 01355_ I-25 Savior sends out distress signal. 01360_ Cld. Deuterium Engine destroyed. 01376_ Acquired Hammer. 01376_ K-01 Serf collects debris. 01380_ Acquired Hpw. Shotgun. 01383_ K-01 Serf collects debris. 01395_ Sneak attack on L-31 Rogue. 01396_ K-01 Serf collects debris. 01404_ Hpw. Shotgun severed. 01406_ K-01 Serf collects debris. 01406_ Destroyed Melee Analysis Suite. 01406_ L-31 Rogue system corrupted by crushing effect. 01410_ K-01 Serf collects debris. 01411_ Hammer destroyed. 01412_ Slammed into L-31 Rogue. 01413_ K-01 Serf collects debris. 01414_ Acquired Hpw. Shotgun. 01416_ K-01 Serf collects debris. Map ----- +----------------------------------------------------+ | ???#?????????????# # #???? | | ?????????????????# + #???? | | ?????????????????# ########+#???? | | ??????????????#### #??????# #???? | | ??????????????+ #??????# #???? | | ??????????????# #??????# #???? | | ??????????????# ######## #???? | | ??????????????# #???? | | ??????????????# ######## #???? | | ??????????????# #??????# #???? | | ??????????????# +??????# #???? | | ??????????????# #??????# #???? | | ??????????????# #??????# #???? | | ?????????????? #??????# #???? | | ?????????????##### #??????# #???? | | ?????????????????# #??????# #???? | | ?????????????????? ???????# #???? | | ?????????????????? ???????# #???? | | ?????????????????? ???????# #???? | | ?????????????????? ???????# #???? | | ?????????????????? ???????# #???? | | ?????????????????# ##### #???? | | ???????????? #???? | | ???????????????????######## #???? | | ?????????????????????# #g#???? | | ?????????????????????#k @l #???? | | ?????????????????????# ###???? | | ?????????????????????# k#?????? | | ?????????????????????# #?????? | | ?????????????????????# #?????? | | ?????????????????????# #?????? | | ?????????????????????# !#?????? | | ?????????????????????######?????? | | ????????????????????????????????? | | ????????????????????????????????? | | ????????????????????????????????? | | ????????????????????????????????? | | ????????????????????????????????? | | ????????????????????????????????? | | ????????????????????????????????? | | ????????????????????????????????? | | ????????????????????????????????? | | ????????????????????????????????? | | ????????????????????????????????? | | ????????????????????????????????? | | ????????????????????????????????? | | ????????????????????????????????? | | ????????????????????????????????? | | ????????????????????????????????? | | ????????????????????????????????? | +----------------------------------------------------+ Best States ------------- Heat Dissipation 31 Energy Generation 31 Energy Capacity 520 Matter Stores 300 Matter Capacity 300 Sight Range 16 Terrain Scan Density 10 Armor Coverage 150 Power Shielding 33 Evasion (%) 55 Recoil Reduction 1 Item Schematics ----------------- None Robot Schematics ------------------ None Fabricated ------------ Nothing Repaired ---------- Nothing Studied --------- None Alien Tech Used ----------------- None Achievements -------------- None Challenges ------------ None Game ------ Seed RegenerativeFusionCarapace Manual? 0 Play Time 00:16:54 Cumulative 5.7 hours Start 2025.12.14 @ 13:05:01 End 2025.12.14 @ 13:25:10 Sessions 1 Manual Loads 0 Difficulty Rogue Special Mode None Game No. 16 Rogue 16 Adventurer 0 Explorer 0 Win Type - Total 0 Types 0/0/0/0/0/0/0/0/0/0 Lore% 2 Gallery% 11 Achievement% 9 Wizard Run 0 Options --------- Layout 1 ASCII 0 Keyboard 0 Movement Mouse Keybinds 0 Fullscreen 1 Font 24/Smallcaps Map View 50x35 Zoom Use 0% Tactical HUD 1 Map Filters NONE Filters NONE Steam 1 RUN: 84ca269c-aa1f-4b12-86af-f81f2d09fe40